[Event "GEO-AZE Women Match 2024"]
[Site "Tbilisi"]
[Date "2024.02.27"]
[Round "1.5"]
[White "Balajayeva, Khanim"]
[Black "Melia, Salome"]
[Result "1-0"]
[ECO "B10"]
[WhiteElo "2350"]
[BlackElo "2355"]
[Annotator "TA"]
[PlyCount "79"]
[EventDate "2024.02.26"]
[EventType "team-tourn"]
[EventCountry "GEO"]
[SourceTitle "playchess.com"]
[Source "ChessBase"]
[SourceQuality "1"]
[WhiteTeam "Azerbaijan"]
[BlackTeam "Georgia"]
[WhiteTeamCountry "AZE"]
[BlackTeamCountry "GEO"]
[TimeControl "40/5400+30:1800+30"]

{[%evp 9,79,12,15,16,22,13,18,16,21,10,36,31,23,22,27,19,25,10,22,46,31,0,8,0,0,-52,-42,-43,-44,-40,-35,-100,-73,-145,-99,-89,0,-156,-87,-206,-193,-237,-253,-447,-429,-502,-376,-378,-375,-371,-363,-384,-365,-957,-100,-84,-18,-16,39,39,135,131,271,277,334,330,1421,1408,1397,1388,1834,1780]} 1. e4 {[%emt 0:00:03]} c6 {[%emt 0:00:08]} 2. Nf3 {[%emt 0:00:29]} d5 {[%emt 0:00:11]} 3. d3 {[%emt 0:00:29]} g6 {[%emt 0:04:20]} 4. e5 {[%emt 0:00:51]} Bg7 {[%emt 0:03:00]} 5. d4 {[%emt 0:01:38]} f6 {[%emt 0:04:25]} 6. exf6 {[%emt 0:14:11]} exf6 {[%emt 0:00:53]} 7. Be2 {[%emt 0:01:20]} Ne7 {[%emt 0:03:44]} 8. O-O {[%emt 0:04:39] The position is equal.} O-O {[%emt 0:01:38]} 9. Re1 {[%emt 0:03:57]} Nf5 {[%emt 0:13:38]} 10. h3 {[%emt 0:15:09]} Nd6 {[%emt 0:04:13]} 11. Bf4 {[%emt 0:00:52]} a5 {[%emt 0:02:24]} 12. a4 {[%emt 0:01:45]} Na6 {[%emt 0:01:37]} 13. Nbd2 {[%emt 0:07:52]} Kh8 {[%emt 0:11:19]} 14. Bh2 {[%emt 0:04:30]} Nc7 {[%emt 0:06:15]} 15. b3 {[%emt 0:02:34]} Ne4 {[%emt 0:02:19]} 16. Bd3 {[%emt 0:01:45]} f5 {[%emt 0:09:11]} 17. c4 {[%emt 0:18:22]} ({Better is} 17. Be5 $11) 17... Ne6 $15 {[%emt 0:02:41]} 18. cxd5 {[%emt 0:03:53]} cxd5 {[%emt 0:01:43]} 19. Be5 {[%emt 0:03:41]} Bxe5 {[%emt 0:00:19]} 20. dxe5 {[%emt 0:00:41]} (20. Nxe5 $15 Nxd4 21. Ndf3 Nxf3+ 22. Nxf3) 20... Qb6 {[%emt 0:03:38]} 21. Rf1 {[%emt 0:00:24]} (21. Qe2 $142) 21... Ng3 {[%emt 0:04:06]} ({Black should try} 21... Bd7 22. h4 Nf4) 22. Re1 $17 {[%emt 0:00:48]} Ne4 {[%emt 0:00:23]} (22... Bd7 $142) 23. Rf1 $1 {[%emt 0:00:41]} Nf4 {[%emt 0:00:45]} (23... Bd7 $142 24. Rc1 Nf4) 24. Bc2 {[%emt 0:04:07]} (24. Bb5 $17 {might work better.}) 24... Be6 {[%emt 0:05:04]} 25. Nb1 {[%emt 0:05:57]} d4 {[%emt 0:06:13][%cal Od4d3] [#] ...d3! is the strong threat.} 26. Nbd2 $2 {[%emt 0:01:38]} (26. Ne1) 26... d3 $19 {[%emt 0:00:40]} 27. Bb1 {[%emt 0:00:04]} Rac8 {[%emt 0:04:17]} (27... Ne2+ $2 28. Kh2 N4c3 (28... Nxf2 29. Qe1 $11) 29. Qe1 $19) 28. Kh2 {[%emt 0:00:43]} Nxf2 {[%emt 0:04:22]} 29. Qe1 {[%emt 0:00:01]} Ne4 {[%emt 0:00:27]} 30. Nxe4 {[%emt 0:01:03]} fxe4 {[%emt 0:00:05]} 31. Ng5 {[%emt 0:00:52] [#]} (31. Qxe4 Bd5 (31... Bxb3 $2 32. e6 $19) (31... Qxb3 32. Nd4 $11) 32. Qd4 Qxd4 (32... Qxb3 $2 33. e6+ Kg8 34. e7 $18) 33. Nxd4 Bxg2 (33... Nxg2 34. Rxf8+ Rxf8 35. Bxd3 $15) 34. Bxd3 Bxf1 (34... Nxd3 35. Rxf8+ Rxf8 36. Kxg2 $15) 35. Bxf1) 31... Qd4 $2 {[%emt 0:01:20]} (31... e3 32. Qh4 Bg8 33. Rxf4 $11) (31... Nxg2 $19 32. Kxg2 Bd5 (32... Bxb3 33. e6 $17) (32... Rxf1 $2 33. Qxf1 Bf5 34. Qf2 $19)) 32. Qxe4 $17 {[%emt 0:00:51]} Qxe4 {[%emt 0:00:32]} ({Black should play} 32... Qxa1 $17 33. Rxf4 Bxb3 34. Bxd3 Rxf4 35. Qxf4 Kg8 (35... Qxa4 $2 {is the wrong capture.} 36. Qf6+ Kg8 37. e6 $18) 36. Nxh7 Kxh7 37. Bxg6+ (37. Qf6 $2 Rc6 $19) 37... Kxg6 38. Qf6+ Kh7 39. Qf5+ Kh8 (39... Kg7 40. Qg5+ Kf7 41. Qf6+ Ke8 42. Qh8+ $11) 40. Qh5+ Kg7 41. Qg5+ (41. Qg4+ Kh6 $11) 41... Kh7 42. Qf5+ Kh6 (42... Kg7 43. Qg4+ Kh8 44. Qxc8+ Bg8 45. Qf5 $11) 43. Qf6+ Kh7 44. Qf5+) 33. Nxe4 $11 {[%emt 0:00:03]} d2 {[%emt 0:00:33]} (33... Bxb3 $11 34. Nd6 Rc5 35. Bxd3 Rxe5) 34. Nxd2 $14 {[%emt 0:00:20]} Rfd8 {[%emt 0:00:30]} (34... b6 $14) 35. Ne4 $16 {[%emt 0:00:40][%cal Bd2e4,Be4d6,Bd6f7,Bf7d8][%mdl 32]} Nd3 {[%emt 0:00:33] Black cannot hold the game after this.} (35... Nd5 $16 {was worth a try.} 36. Nd6 Rb8) 36. Nd6 $18 {[%emt 0:00:24]} Rc3 {[%emt 0:00:30]} 37. Rf3 {[%emt 0:00:16]} ({Weaker is} 37. Nxb7 Rd5 $18) 37... Bf5 {[%emt 0:00:30]} (37... Nxe5 38. Rxc3 Rxd6) 38. Nf7+ {[%emt 0:00:13] White is clearly winning.} Kg7 {[%emt 0:00:15]} 39. Nxd8 {[%emt 0:00:02]} Rc1 {[%emt 0:00:42]} 40. Bxd3 {[%emt 0:00:00] Weighted Error Value: White=0.51/Black=0.55.  Missed win:     	---       	Black=1      Mistake:       	White=6     	Black=7      Inaccurate:     	---       	Black=1      OK:         	White=10    	Black=12     Best:        	White=2     	Black=1      Strong:       	White=1     	---} 1-0

[Event "GEO-AZE Women Match 2024"]
[Site "Tbilisi"]
[Date "2024.02.28"]
[Round "2.1"]
[White "Arabidze, Meri"]
[Black "Mammadzada, Gunay"]
[Result "1/2-1/2"]
[ECO "D36"]
[WhiteElo "2466"]
[BlackElo "2449"]
[Annotator "TA"]
[PlyCount "106"]
[EventDate "2024.02.26"]
[EventType "team-tourn"]
[EventCountry "GEO"]
[SourceTitle "playchess.com"]
[Source "ChessBase"]
[SourceQuality "1"]
[WhiteTeam "Georgia"]
[BlackTeam "Azerbaijan"]
[WhiteTeamCountry "GEO"]
[BlackTeamCountry "AZE"]
[TimeControl "40/5400+30:1800+30"]

{[%evp 15,106,20,10,0,20,18,20,22,19,8,13,10,10,12,20,0,0,0,0,0,0,0,0,0,6,10,46,-31,0,-32,0,0,9,0,29,63,41,0,0,0,0,0,0,0,0,0,0,0,0,0,0,0,0,0,0,0,12,0,0,0,0,0,0,0,0,0,0,0,0,0,0,0,0,0,0,0,0,0,0,0,0,0,0,0,0,0,0,0,0,0,0,0,0]} 1. Nf3 {[%emt 0:00:02]} d5 {[%emt 0:00:23]} 2. c4 {[%emt 0:00:08]} e6 {[%emt 0:10:07]} 3. d4 {[%emt 0:00:51]} Nf6 {[%emt 0:00:06]} 4. Nc3 {[%emt 0:00:34]} c6 {[%emt 0:01:37]} 5. cxd5 {[%emt 0:02:48]} exd5 {[%emt 0:04:11]} 6. Bg5 {[%emt 0:00:37]} Be7 {[%emt 0:02:20]} 7. Qc2 {[%emt 0:00:29]} O-O {[%emt 0:12:32]} 8. e3 {[%emt 0:00:32]} h6 {[%emt 0:13:10]} 9. Bh4 {[%emt 0:00:28]} Ne4 {[%emt 0:02:20]} 10. Bxe7 {[%emt 0:05:58]} Qxe7 {[%emt 0:00:06]} 11. Bd3 {[%emt 0:05:59]} Re8 {[%emt 0:05:19]} 12. O-O {[%emt 0:03:05][%cal Ob2b4]} Bf5 {[%emt 0:05:28]} 13. Rfe1 {[%emt 0:08:57]} Nd7 {[%emt 0:03:54]} 14. Nd2 {[%emt 0:01:34]} Bg6 {[%emt 0:05:18]} 15. Nf1 {[%emt 0:04:12]} Nxc3 {[%emt 0:05:17]} 16. bxc3 {[%emt 0:02:45]} Bxd3 {[%emt 0:00:36]} 17. Qxd3 {[%emt 0:00:01]} b5 {[%emt 0:03:50]} 18. f3 {[%emt 0:02:40]} Nb6 {[%emt 0:06:00]} 19. e4 {[%emt 0:03:32]} dxe4 {[%emt 0:04:01]} 20. fxe4 {[%emt 0:00:43]} Qa3 {[%emt 0:01:00]} 21. Nd2 {[%emt 0:12:03]} (21. Ng3 $14) 21... b4 {[%emt 0:01:10]} 22. Rac1 {[%emt 0:08:44]} Rad8 {[%emt 0:01:53]} 23. Nb3 {[%emt 0:02:18]} Qxa2 {[%emt 0:07:25]} 24. cxb4 {[%emt 0:00:41][%cal Oc1a1] [#] Threatens to win with Ra1!} Qa4 {[%emt 0:00:16]} 25. Qc3 {[%emt 0:06:13][%cal Ob3a5]} Qb5 {[%emt 0:01:07]} 26. Nc5 {[%emt 0:03:53]} (26. Qxc6 Qxb4 27. Qc3 Qxc3 28. Rxc3 a5 $16) (26. Na5 $5) 26... Na4 {[%emt 0:01:42] The position is equal.} 27. Nxa4 {[%emt 0:08:35]} Qxa4 {[%emt 0:00:01]} 28. Ra1 {[%emt 0:00:26]} Qb5 {[%emt 0:00:05]} 29. Rxa7 {[%emt 0:00:33]} Qb6 {[%emt 0:01:01][%csl LRa7,LRd4]} 30. Qc5 {[%emt 0:00:07]} Qxc5 {[%emt 0:00:30]} 31. dxc5 $11 {[%emt 0:00:01][%mdl 4096] Endgame. KRR-KRR} Rd4 {[%emt 0:00:13][%csl LRb4,LRe4]} 32. Rb7 {[%emt 0:00:29]} Rexe4 {[%emt 0:02:45]} 33. Rxe4 {[%emt 0:00:05]} Rxe4 {[%emt 0:00:03] KR-KR} 34. Kf2 {[%emt 0:00:09]} f5 {[%emt 0:00:41]} 35. Kf3 {[%emt 0:00:25]} Kh7 {[%emt 0:00:12]} 36. h3 {[%emt 0:03:28]} h5 {[%emt 0:00:06]} 37. g3 {[%emt 0:00:38]} Kg6 {[%emt 0:01:37]} 38. h4 {[%emt 0:04:41]} Kf6 {[%emt 0:00:08]} 39. Rb6 {[%emt 0:00:28]} Ke5 {[%emt 0:00:54]} 40. Rxc6 {[%emt 0:00:00]} Rxb4 {[%emt 0:00:00]} 41. Rc7 {[%emt 0:10:13]} Rb3+ {[%emt 0:06:01]} 42. Kg2 {[%emt 0:01:28]} Rb2+ {[%emt 0:00:29]} 43. Kf3 {[%emt 0:01:01]} Rb3+ {[%emt 0:00:10]} 44. Kf2 {[%emt 0:00:55]} Rb2+ {[%emt 0:00:23]} 45. Ke1 {[%emt 0:01:19]} g6 {[%emt 0:05:59]} 46. Rc6 {[%emt 0:03:19]} Rc2 {[%emt 0:02:39]} 47. Rxg6 {[%emt 0:07:09]} Rxc5 {[%emt 0:00:07]} 48. Rg5 {[%emt 0:00:06]} Rc3 {[%emt 0:01:21]} 49. Kf2 {[%emt 0:01:28]} Rc2+ {[%emt 0:02:25]} 50. Kf3 {[%emt 0:00:24]} Rc3+ {[%emt 0:00:41]} 51. Kg2 {[%emt 0:00:45]} Ke4 {[%emt 0:00:04]} 52. Rxh5 {[%emt 0:00:24]} f4 {[%emt 0:00:07]} 53. gxf4 {[%emt 0:00:42]} Kxf4 {[%emt 0:00:05] Weighted Error Value: White=0.08 (flawless) /Black=0.05 (flawless) .  Mistake:       	White=1     	---        Inaccurate:     	White=2     	Black=4      OK:         	White=20    	Black=25     Best:        	White=1     	---} 1/2-1/2

[Event "GEO-AZE Women Match 2024"]
[Site "Tbilisi"]
[Date "2024.02.28"]
[Round "2.2"]
[White "Batsiashvili, Nino"]
[Black "Fataliyeva, Ulviyya"]
[Result "1-0"]
[ECO "C58"]
[WhiteElo "2451"]
[BlackElo "2384"]
[Annotator "TA"]
[PlyCount "149"]
[EventDate "2024.02.26"]
[EventType "team-tourn"]
[EventCountry "GEO"]
[SourceTitle "playchess.com"]
[Source "ChessBase"]
[SourceQuality "1"]
[WhiteTeam "Georgia"]
[BlackTeam "Azerbaijan"]
[WhiteTeamCountry "GEO"]
[BlackTeamCountry "AZE"]
[TimeControl "40/5400+30:1800+30"]

{[%evp 43,149,50,62,31,47,50,123,110,210,78,78,50,58,54,60,41,39,27,74,55,78,68,140,131,133,131,134,135,133,116,120,114,128,94,131,94,101,95,102,102,296,293,292,297,370,366,327,354,362,328,477,279,277,260,345,345,360,363,372,371,691,697,706,681,717,713,737,499,855,850,718,908,914,893,884,837,1251,1171,1648,1612,6127,6179,5077,2660,6075,5890,29964,29968,29967,29968,29970,29970,29970,29971,29978,29979,29980,29981,29981,29981,29981,29982,29982,29983,29982,29983,29983,29984]} 1. e4 {[%emt 0:00:26]} e5 {[%emt 0:00:08]} 2. Nf3 {[%emt 0:00:05]} Nc6 {[%emt 0:00:04]} 3. Bc4 {[%emt 0:00:03]} Nf6 {[%emt 0:00:13]} 4. Ng5 {[%emt 0:00:07]} d5 {[%emt 0:00:09]} 5. exd5 {[%emt 0:00:09]} Na5 {[%emt 0:00:08]} 6. Bb5+ {[%emt 0:00:05]} c6 {[%emt 0:00:05]} 7. dxc6 {[%emt 0:00:03]} bxc6 {[%emt 0:00:04]} 8. Bd3 {[%emt 0:00:09]} Nd5 {[%emt 0:02:14]} 9. Nf3 {[%emt 0:00:10]} Bd6 {[%emt 0:02:48]} 10. O-O {[%emt 0:00:17]} Nf4 {[%emt 0:00:16]} 11. Nc3 {[%emt 0:02:13]} O-O {[%emt 0:01:31]} 12. Be2 {[%emt 0:03:40]} c5 {[%emt 0:05:31]} 13. d3 {[%emt 0:01:56]} Nxe2+ {[%emt 0:02:53]} 14. Qxe2 {[%emt 0:00:03]} Rb8 {[%emt 0:04:42]} 15. Ne4 {[%emt 0:11:43]} Nc6 {[%emt 0:02:25]} 16. c3 {[%emt 0:04:02]} Be7 {[%emt 0:06:07]} 17. b3 {[%emt 0:07:33]} Ba6 {[%emt 0:05:59]} 18. c4 {[%emt 0:03:31]} Bc8 {[%emt 0:05:10]} 19. Bb2 {[%emt 0:01:25]} f6 {[%emt 0:01:57]} 20. Rad1 {[%emt 0:07:58]} Bg4 {[%emt 0:01:19]} 21. h3 {[%emt 0:01:45]} Bh5 {[%emt 0:08:35]} 22. Ng3 {[%emt 0:00:13]} Bf7 {[%emt 0:01:14]} 23. Nf5 {[%emt 0:03:43]} Re8 $1 {[%emt 0:00:17]} 24. Qe4 {[%emt 0:02:28]} Qc8 {[%emt 0:08:52]} (24... Qc7 $14) 25. Qg4 $16 {[%emt 0:02:04]} g5 {[%emt 0:09:52]} (25... Bg6 $16 26. N3h4 Bxf5 27. Nxf5 Bf8) 26. Nh6+ {[%emt 0:02:30]} (26. h4 $18 {is the precise move to win.}) 26... Kg7 $16 {[%emt 0:01:02]} 27. Nxf7 {[%emt 0:00:08]} Qxg4 {[%emt 0:00:20]} 28. hxg4 {[%emt 0:00:04]} Kxf7 {[%emt 0:00:05]} 29. Bc3 {[%emt 0:03:38]} Red8 {[%emt 0:01:13]} 30. Rd2 {[%emt 0:00:44]} Rd6 {[%emt 0:11:18]} (30... a5 $11 {deserves consideration.}) 31. Rfd1 {[%emt 0:01:06]} Bd8 {[%emt 0:00:03]} 32. Nh2 {[%emt 0:01:42]} Ba5 {[%emt 0:01:45]} ({Better is} 32... Rd7 $14) 33. Bxa5 $16 {[%emt 0:00:50]} Nxa5 {[%emt 0:00:05]} 34. Nf1 {[%emt 0:00:37]} Nc6 {[%emt 0:00:33]} 35. Ng3 {[%emt 0:03:23]} Nd4 {[%emt 0:00:17]} 36. Ne4 {[%emt 0:01:22]} Rc6 {[%emt 0:00:06]} 37. f3 {[%emt 0:01:17]} Rh8 {[%emt 0:03:09]} 38. Rb1 {[%emt 0:02:00]} a5 {[%emt 0:01:51]} 39. a3 {[%emt 0:04:44]} Rb8 {[%emt 0:00:20]} 40. Rdb2 {[%emt 0:00:00]} Ne6 {[%emt 0:00:00]} 41. b4 {[%emt 0:01:55]} Rcb6 $2 {[%emt 0:11:46]} (41... cxb4 $16 42. axb4 axb4) 42. b5 $18 {[%emt 0:00:43]} (42. Nxc5 $2 {is the wrong capture.} Nxc5 43. Kh1 Nxd3 $19) 42... Rc8 {[%emt 0:02:06]} 43. Kf2 {[%emt 0:01:37]} h5 {[%emt 0:00:57]} 44. gxh5 {[%emt 0:01:45]} f5 {[%emt 0:00:07]} 45. Nc3 {[%emt 0:08:25]} Nf4 {[%emt 0:00:09]} 46. Rd2 {[%emt 0:00:18]} Rd6 {[%emt 0:02:15] [#]} (46... Nxh5 $142 47. Na4 Rbb8) 47. Nd5 {[%emt 0:07:27]} (47. g4 $142 $1) 47... Nxd5 $18 {[%emt 0:02:33]} 48. cxd5 {[%emt 0:00:16]} a4 {[%emt 0:00:35]} 49. b6 {[%emt 0:01:55]} Rb8 {[%emt 0:00:29]} 50. b7 {[%emt 0:00:08]} Rxd5 {[%emt 0:00:15]} 51. Ke2 {[%emt 0:00:35]} g4 $2 {[%emt 0:01:47]} (51... f4 52. Rb6 Rd7) 52. fxg4 $18 {[%emt 0:00:52]} fxg4 {[%emt 0:00:04]} 53. Rb6 {[%emt 0:00:05]} Rd4 {[%emt 0:04:06]} 54. Ke3 {[%emt 0:02:38]} g3 {[%emt 0:00:51]} 55. Rc2 {[%emt 0:01:28]} Rd7 {[%emt 0:00:17]} 56. Rcb2 {[%emt 0:00:25]} Kg7 {[%emt 0:04:19]} 57. R2b5 {[%emt 0:06:34]} Kh7 {[%emt 0:02:46]} 58. Ke4 {[%emt 0:06:08]} Rd4+ {[%emt 0:00:25]} 59. Kxe5 {[%emt 0:00:53]} Rxd3 {[%emt 0:00:03]} 60. Rxc5 {[%emt 0:00:04]} Rd7 {[%emt 0:01:05]} 61. Kf4 {[%emt 0:03:36]} Rbxb7 {[%emt 0:00:42]} 62. Rxb7 {[%emt 0:00:04]} Rxb7 {[%emt 0:00:04]} 63. Kxg3 {[%emt 0:00:14]} Rb3+ {[%emt 0:00:24]} 64. Kh4 {[%emt 0:00:02]} Rxa3 {[%emt 0:00:09]} 65. Rc7+ {[%emt 0:00:30]} Kg8 {[%emt 0:00:18]} 66. Ra7 {[%emt 0:00:14]} Ra1 {[%emt 0:01:05]} 67. g4 {[%emt 0:00:07]} a3 {[%emt 0:00:11]} 68. Kg5 {[%emt 0:00:05]} a2 {[%emt 0:00:15]} 69. Kg6 {[%emt 0:00:28]} Kf8 {[%emt 0:00:23]} 70. g5 {[%emt 0:00:23]} Rb1 {[%emt 0:01:20]} 71. Ra8+ {[%emt 0:00:12]} Ke7 {[%emt 0:00:02]} 72. Rxa2 {[%emt 0:00:07]} Rb6+ {[%emt 0:00:03]} 73. Kg7 {[%emt 0:00:11]} Rb5 {[%emt 0:00:02]} 74. Re2+ {[%emt 0:00:22]} Kd7 {[%emt 0:00:02]} 75. Kh6 {[%emt 0:00:07]} 1-0

[Event "GEO-AZE Women Match 2024"]
[Site "Tbilisi"]
[Date "2024.02.28"]
[Round "2.3"]
[White "Javakhishvili, Lela"]
[Black "Beydullayeva, Govhar"]
[Result "1/2-1/2"]
[ECO "E05"]
[WhiteElo "2433"]
[BlackElo "2374"]
[Annotator "TA"]
[PlyCount "46"]
[EventDate "2024.02.26"]
[EventType "team-tourn"]
[EventCountry "GEO"]
[SourceTitle "playchess.com"]
[Source "ChessBase"]
[SourceQuality "1"]
[WhiteTeam "Georgia"]
[BlackTeam "Azerbaijan"]
[WhiteTeamCountry "GEO"]
[BlackTeamCountry "AZE"]
[TimeControl "40/5400+30:1800+30"]

{[%evp 18,46,20,14,19,0,8,8,22,15,20,4,7,0,31,6,25,12,22,0,7,7,8,5,8,12,17,13,10,10,31]} 1. d4 {[%emt 0:00:05]} Nf6 {[%emt 0:00:08]} 2. c4 {[%emt 0:00:16]} e6 {[%emt 0:00:04]} 3. g3 {[%emt 0:00:11]} d5 {[%emt 0:00:22]} 4. Nf3 {[%emt 0:00:24]} Be7 {[%emt 0:00:44]} 5. Bg2 {[%emt 0:00:14]} O-O {[%emt 0:00:07]} 6. O-O {[%emt 0:00:29]} dxc4 {[%emt 0:00:08]} 7. Qc2 {[%emt 0:03:57]} a6 {[%emt 0:02:48]} 8. a4 {[%emt 0:00:07]} Bd7 {[%emt 0:00:10]} 9. Qxc4 {[%emt 0:00:17]} Bc6 {[%emt 0:00:47]} 10. Bf4 {[%emt 0:00:16]} Bd6 {[%emt 0:00:48]} 11. Qc1 {[%emt 0:00:38]} a5 {[%emt 0:13:24]} 12. Nc3 {[%emt 0:01:41]} Bxf4 {[%emt 0:03:26]} 13. Qxf4 {[%emt 0:00:49]} Bxf3 {[%emt 0:00:09]} 14. Bxf3 {[%emt 0:00:22]} c6 {[%emt 0:00:02]} 15. Rfd1 {[%emt 0:02:08]} Na6 {[%emt 0:04:28][%cal Bb8a6,Ba6b4,Bb4d5,Bd5b6,Bb6c4][%mdl 32]} 16. h4 {[%emt 0:04:35]} Nb4 {[%emt 0:06:50]} 17. Rac1 {[%emt 0:04:19]} Qe7 {[%emt 0:03:53] The position is equal.} 18. Nb1 {[%emt 0:13:08]} Rfd8 {[%emt 0:10:00]} 19. Na3 {[%emt 0:01:32]} Nbd5 {[%emt 0:01:39] A dynamic duo of knights.} 20. Qd2 {[%emt 0:02:19]} Nb6 {[%emt 0:10:21]} 21. Nc4 {[%emt 0:02:43]} Nxc4 {[%emt 0:02:26]} 22. Rxc4 {[%emt 0:01:35]} Nd7 {[%emt 0:06:35]} 23. Qc2 {[%emt 0:05:03]} Qd6 {[%emt 0:03:57] A rather calm draw.   Weighted Error Value: White=0.08 (flawless) /Black=0.07 (flawless) .  Inaccurate:     	---       	Black=1      OK:         	White=4     	Black=5} 1/2-1/2

[Event "GEO-AZE Women Match 2024"]
[Site "Tbilisi"]
[Date "2024.02.28"]
[Round "2.4"]
[White "Melia, Salome"]
[Black "Mammadova, Gulnar"]
[Result "1/2-1/2"]
[ECO "C84"]
[WhiteElo "2355"]
[BlackElo "2351"]
[Annotator "TA"]
[PlyCount "96"]
[EventDate "2024.02.26"]
[EventType "team-tourn"]
[EventCountry "GEO"]
[SourceTitle "playchess.com"]
[Source "ChessBase"]
[SourceQuality "1"]
[WhiteTeam "Georgia"]
[BlackTeam "Azerbaijan"]
[WhiteTeamCountry "GEO"]
[BlackTeamCountry "AZE"]
[TimeControl "40/5400+30:1800+30"]

{[%evp 15,96,14,24,19,29,30,18,29,29,22,20,20,10,8,15,15,14,0,0,0,18,2,69,76,75,77,93,94,89,89,114,111,130,120,195,183,175,39,37,35,39,41,39,36,114,124,143,61,28,0,7,0,0,0,0,0,0,0,0,0,0,0,0,-6,0,-29,-13,-26,0,0,0,0,0,0,0,0,105,0,0,0,0,-45,-61]} 1. e4 {[%emt 0:00:03]} e5 {[%emt 0:00:11]} 2. Nf3 {[%emt 0:00:08]} Nc6 {[%emt 0:00:09]} 3. Bb5 {[%emt 0:00:06][%cal Bf1b5,Bb5a4,Ba4b3][%mdl 32]} a6 {[%emt 0:00:11]} 4. Ba4 {[%emt 0:00:03]} Nf6 {[%emt 0:00:08]} 5. O-O {[%emt 0:00:19]} Be7 {[%emt 0:00:23]} 6. d3 {[%emt 0:00:15]} b5 {[%emt 0:00:42][%cal Bb7b5,Bb5b4][%mdl 32]} 7. Bb3 {[%emt 0:00:02]} d6 {[%emt 0:00:26]} 8. a4 {[%emt 0:00:33]} Bd7 {[%emt 0:00:41]} 9. c3 {[%emt 0:00:44]} O-O {[%emt 0:03:46]} 10. Bc2 {[%emt 0:00:05]} b4 {[%emt 0:04:08]} 11. h3 {[%emt 0:06:00] The position is equal.} Rb8 {[%emt 0:02:03]} 12. Re1 {[%emt 0:01:42]} Re8 {[%emt 0:08:35]} 13. Nbd2 {[%emt 0:04:28][%cal Bb1d2,Bd2c4,Bc4b6][%mdl 32]} Bf8 {[%emt 0:09:00]} 14. a5 {[%emt 0:03:48]} bxc3 {[%emt 0:04:10]} 15. bxc3 {[%emt 0:00:03]} h6 {[%emt 0:04:28]} 16. Nc4 {[%emt 0:04:27]} Ne7 {[%emt 0:03:58]} 17. d4 {[%emt 0:07:05]} Ng6 {[%emt 0:56:01]} 18. d5 {[%emt 0:03:57]} c6 {[%emt 0:00:00]} (18... Qc8 $11) 19. Nb6 $14 {[%emt 0:13:35]} Qc7 {[%emt 0:00:00]} 20. c4 {[%emt 0:01:55]} c5 {[%emt 0:00:00]} 21. Nh2 {[%emt 0:08:30][%cal Bf3h2,Bh2f1,Bf1e3,Be3f5][%mdl 32]} Be7 {[%emt 0:00:00]} 22. Nf1 {[%emt 0:11:45]} Rf8 {[%emt 0:00:00]} 23. Ne3 {[%emt 0:03:20]} Bd8 {[%emt 0:00:00]} 24. Nf5 {[%emt 0:05:03]} Bxf5 {[%emt 0:00:00]} (24... Ne7 $16) 25. exf5 $18 {[%emt 0:00:02]} Ne7 {[%emt 0:00:00] Black is weak on the light squares} 26. f4 {[%emt 0:03:53]} (26. h4 $18) 26... exf4 $14 {[%emt 0:00:00]} 27. Bxf4 {[%emt 0:00:08]} Nc8 {[%emt 0:00:00]} 28. Nxc8 {[%emt 0:03:41]} Rxc8 {[%emt 0:00:00]} 29. Ra3 {[%emt 0:01:47]} (29. Qd2 $5) 29... Kh8 {[%emt 0:00:00]} (29... Rb8 $14) 30. Qd2 $16 {[%emt 0:03:55]} Nh7 {[%emt 0:00:00]} 31. Kh1 {[%emt 0:06:08]} ({White should try} 31. Rb3 $16) 31... Bf6 $1 $14 {[%emt 0:00:00]} 32. Rb3 {[%emt 0:06:29]} Rb8 {[%emt 0:00:00] Against Rb6} 33. Reb1 {[%emt 0:00:35]} Rxb3 {[%emt 0:00:00]} 34. Rxb3 {[%emt 0:00:01]} Rb8 {[%emt 0:00:00] Prevents Rb6.} 35. Qe1 {[%emt 0:00:17][%cal Ob3b6]} Nf8 {[%emt 0:00:00]} 36. Rxb8 {[%emt 0:01:03]} Qxb8 {[%emt 0:00:00]} 37. Ba4 {[%emt 0:01:27]} Bd4 {[%emt 0:01:19]} 38. Kh2 {[%emt 0:00:50]} Kg8 {[%emt 0:01:27]} 39. h4 {[%emt 0:01:05]} f6 {[%emt 0:01:48]} (39... Nh7 {simplifies} 40. Qe8+ Qxe8 41. Bxe8 Nf6) 40. Qe8 {[%emt 0:00:00]} Qb1 {[%emt 0:00:00] [#] ...Bg1+ would now be deadly.} 41. Qe2 {[%emt 0:23:26] Active counter play!} (41. Bxd6 Bg1+ 42. Kh1 (42. Kg3 $2 Qd3+ 43. Kg4 h5+ 44. Qxh5 Qe2+ 45. Kh3 Qxh5 $19) 42... Bf2+ 43. Kh2 Qg1+ (43... Bg1+ $2 44. Kh1 $19) 44. Kh3 Qh1+ 45. Bh2 Bg1 $19) 41... Be5 {[%emt 0:07:53]} 42. Bxe5 {[%emt 0:01:14]} fxe5 $11 {[%emt 0:01:15][%mdl 4096] Endgame. KQB-KQN} 43. Qg4 {[%emt 0:04:40]} Kf7 {[%emt 0:08:37]} (43... Nh7 $5 44. f6 $8 Nxf6 45. Qc8+ Kh7 $11) 44. Qh5+ {[%emt 0:00:59]} Kg8 {[%emt 0:01:01]} 45. Be8 {[%emt 0:00:40]} Qb7 {[%emt 0:00:56] Inhibits Qf7+.} (45... Nh7 $11 {remains equal.}) 46. Bc6 {[%emt 0:01:28]} (46. f6 $1 $16) 46... Qe7 {[%emt 0:02:28]} 47. Kh3 {[%emt 0:00:52]} Qf6 {[%emt 0:02:07]} 48. Qf3 {[%emt 0:00:06]} Qd8 {[%emt 0:00:44] Weighted Error Value: White=0.15 (very precise) /Black=0.14 (very precise) .  Mistake:       	White=3     	Black=4      Inaccurate:     	White=2     	Black=1      OK:         	White=12    	Black=15     Best:        	White=1     	Black=3      Strong:       	---       	Black=1} 1/2-1/2